fUST/lending_fUST_20250610
["ID","MTS","AMOUNT","RATE_DAILY","PERIOD"]
[365257711,1749567043877,-153.0,0.00022648,2]
[365257713,1749567043886,-153.0,0.00022648,2]
[365257715,1749567043895,-153.0,0.00022648,2]
[365257717,1749567043905,-153.0,0.00022648,2]
[365257719,1749567043914,-153.0,0.00022648,2]
[365257721,1749567043923,-153.0,0.00022648,2]
[365257722,1749567043933,-153.0,0.00022648,2]
[365257724,1749567043942,-153.0,0.00022648,2]
[365257726,1749567043951,-153.0,0.00022648,2]
[365257728,1749567043960,-153.0,0.00022648,2]
[365257730,1749567043970,-153.0,0.00022648,2]
[365257732,1749567043979,-153.0,0.00022648,2]
[365257735,1749567043988,-153.0,0.00022648,2]
[365257737,1749567044000,-153.0,0.00022648,2]
[365257739,1749567044009,-153.0,0.00022648,2]
[365257741,1749567044019,-153.0,0.00022648,2]
[365257743,1749567044029,-153.0,0.00022648,2]
[365257745,1749567044039,-153.0,0.00022648,2]
[365257747,1749567044049,-153.0,0.00022648,2]
[365257749,1749567044059,-153.0,0.00022648,2]
[365257751,1749567044069,-153.0,0.00022648,2]
[365257753,1749567044079,-153.0,0.00022648,2]
[365257755,1749567044088,-153.0,0.00022648,2]
[365257757,1749567044097,-153.0,0.00022648,2]
[365257759,1749567044107,-153.0,0.00022648,2]
[365257761,1749567044116,-153.0,0.00022648,2]
[365257763,1749567044127,-153.0,0.00022648,2]
[365257765,1749567044137,-153.0,0.00022648,2]
[365257767,1749567044146,-153.0,0.00022648,2]
[365257769,1749567044155,-153.0,0.00022648,2]
[365257771,1749567044164,-153.0,0.00022648,2]
[365257773,1749567044174,-153.0,0.00022648,2]
[365257775,1749567044183,-153.0,0.00022648,2]
[365257777,1749567044193,-153.0,0.00022648,2]
[365257779,1749567044202,-153.0,0.00022648,2]
[365257781,1749567044212,-153.0,0.00022648,2]
[365257783,1749567044222,-153.0,0.00022648,2]
[365257785,1749567044231,-153.0,0.00022648,2]
[365257787,1749567044241,-153.0,0.00022648,2]
[365257789,1749567044254,-153.0,0.00022648,2]
[365257791,1749567044264,-153.0,0.00022648,2]
[365257794,1749567044274,-153.0,0.00022648,2]
[365257796,1749567044284,-153.0,0.00022648,2]
[365257798,1749567044295,-153.0,0.00022648,2]
[365257800,1749567044306,-153.0,0.00022648,2]
[365257802,1749567044315,-153.0,0.00022648,2]
[365257804,1749567044325,-153.0,0.00022648,2]
[365257806,1749567044335,-153.0,0.00022648,2]
[365257808,1749567044345,-153.0,0.00022648,2]
[365257810,1749567044355,-153.0,0.00022648,2]
[365257812,1749567044364,-153.0,0.00022648,2]
[365257814,1749567044374,-500.0,0.00022668,2]
[365257816,1749567044384,-690.89245283,0.00022693,7]
[365257818,1749567044393,-766.63,0.00022693,5]
[365257820,1749567044403,-489.7,0.00022739,4]
[365257822,1749567044413,-638.78,0.00022739,4]
[365257824,1749567044423,-460.0,0.00022739,4]
[365257826,1749567044432,-537.95,0.00022739,4]
[365257828,1749567044442,-525.46,0.00022739,4]
[365257830,1749567044451,-337.46078022,0.00022739,4]
[365257832,1749567044460,-1473.04,0.00022739,4]
[365257834,1749567044470,-460.0,0.00022739,4]
[365257836,1749567044479,-460.0,0.00022739,4]
[365257838,1749567044489,-460.0,0.00022739,4]
[365257840,1749567044501,-460.0,0.00022739,4]
[365257842,1749567044510,-460.0,0.00022739,4]
[365257844,1749567044520,-956.23,0.00022739,4]
[365257846,1749567044529,-814.31,0.00022739,4]
[365257848,1749567044539,-460.0,0.00022739,2]
[365257850,1749567044548,-460.0,0.00022739,4]
[365257852,1749567044558,-615.67,0.00022739,4]
[365257854,1749567044568,-460.0,0.00022739,4]
[365257856,1749567044578,-482.08,0.00022739,4]
[365257858,1749567044588,-1623.99,0.00022739,4]
[365257860,1749567044598,-1402.31,0.00022739,4]
[365257863,1749567044607,-852.42,0.00022739,4]
[365257865,1749567044616,-1877.76,0.00022739,4]
[365257867,1749567044626,-460.0,0.00022739,4]
[365257869,1749567044636,-488.41,0.00022739,4]
[365257871,1749567044645,-1307.65,0.00022739,4]
[365257873,1749567044655,-1421.29,0.00022739,4]
[365257875,1749567044665,-771.06,0.00022739,4]
[365257877,1749567044674,-1074.8,0.00022739,4]
[365257879,1749567044684,-460.0,0.00022739,4]
[365257881,1749567044693,-976.63,0.00022739,4]
[365257883,1749567044703,-537.78,0.00022739,4]
[365257885,1749567044713,-627.69,0.00022739,4]
[365257887,1749567044722,-1930.34,0.00022739,4]
[365257889,1749567044731,-585.01,0.00022739,4]
[365257891,1749567044741,-500.0,0.0002279,2]
[365257893,1749567044752,-177.84780123,0.0002279,2]
[365257895,1749567044761,-500.0,0.0002279,2]
[365257897,1749567044771,-500.0,0.0002279,2]
[365257899,1749567044781,-600.0,0.0002279,2]
[365257901,1749567044790,-766.63,0.00022793,7]
[365257903,1749567044799,-690.89245283,0.00022831,8]
[365257905,1749567044810,-420.0,0.00022841,2]
[365257907,1749567044819,-766.63,0.00022893,2]
[365257909,1749567044828,-6896.55951947,0.0002295,7]
[365257911,1749567044838,-6896.55951947,0.0002295,7]
[365257913,1749567044847,-690.89245283,0.00022969,8]
[365257915,1749567044856,-160.02203713,0.00022978,2]
[365257917,1749567044865,-232.38738173,0.00022978,2]
[365257919,1749567044874,-1500.0,0.00022978,2]
[365257921,1749567044884,-1500.0,0.00022978,2]
[365257923,1749567044893,-2500.0,0.00022978,2]
[365257925,1749567044903,-5000.0,0.00022978,2]
[365257927,1749567044912,-1500.0,0.00022978,2]
[365257929,1749567044922,-2500.0,0.00022978,2]
[365257931,1749567044931,-1688.0,0.00022978,2]
[365257933,1749567044940,-1500.0,0.00022978,2]
[365257935,1749567044949,-2500.0,0.00022978,2]
[365257936,1749567044959,-2323.54423715,0.00022978,2]
[365257939,1749567044968,-1500.0,0.00022978,2]
[365257941,1749567044978,-1500.0,0.00022978,2]
[365257943,1749567044987,-1500.0,0.00022978,2]
[365257945,1749567044998,-1500.0,0.00022978,2]
[365257946,1749567045008,-431.86117909,0.00022978,2]
[365257949,1749567045018,-207.4,0.00022978,2]
[365257950,1749567045028,-1532.78696414,0.00022978,2]
[365257952,1749567045037,-766.63,0.00022993,6]
[365257954,1749567045047,-159.173599,0.00023,20]
[365257956,1749567045057,-202.26521221,0.00023,2]
[365257958,1749567045069,-489.7,0.00023013,4]
[365257960,1749567045079,-638.78,0.00023013,4]
[365257962,1749567045089,-460.0,0.00023013,4]
[365257964,1749567045098,-537.95,0.00023013,4]
[365257966,1749567045108,-525.46,0.00023013,4]
[365257968,1749567045119,-1473.04,0.00023013,4]
[365257970,1749567045128,-460.0,0.00023013,4]
[365257972,1749567045138,-460.0,0.00023013,4]
[365257974,1749567045148,-460.0,0.00023013,4]
[365257976,1749567045158,-460.0,0.00023013,4]
[365257978,1749567045168,-460.0,0.00023013,4]
[365257980,1749567045177,-956.23,0.00023013,4]
[365257982,1749567045186,-814.31,0.00023013,4]
[365257984,1749567045196,-460.0,0.00023013,2]
[365257987,1749567045206,-317.47,0.00023013,4]
[365257988,1749567045215,-615.67,0.00023013,4]
[365257991,1749567045225,-460.0,0.00023013,4]
[365257993,1749567045235,-482.08,0.00023013,4]
[365257994,1749567045244,-1623.99,0.00023013,4]
[365257997,1749567045260,-1402.31,0.00023013,4]
[365257999,1749567045270,-852.42,0.00023013,4]
[365258001,1749567045281,-1877.76,0.00023013,4]
[365258003,1749567045290,-460.0,0.00023013,4]
[365258005,1749567045302,-488.41,0.00023013,4]
[365258007,1749567045312,-1307.65,0.00023013,4]
[365258009,1749567045322,-1421.29,0.00023013,4]
[365258011,1749567045333,-771.06,0.00023013,4]
[365258012,1749567045343,-1074.8,0.00023013,4]
[365258015,1749567045353,-460.0,0.00023013,4]
[365258017,1749567045363,-976.63,0.00023013,4]
[365258020,1749567045372,-537.78,0.00023013,4]
[365258021,1749567045381,-627.69,0.00023013,4]
[365258023,1749567045391,-1930.34,0.00023013,4]
[365258025,1749567045401,-585.01,0.00023013,4]
[365258027,1749567045410,-1688.0,0.00023033,2]
[365258030,1749567045420,-500.0,0.00023048,2]
[365258032,1749567045430,-1000.0,0.00023048,2]
[365258034,1749567045439,-500.0,0.0002306,2]
[365258036,1749567045449,-500.0,0.0002306,2]
[365258038,1749567045458,-562.74902061,0.0002306,2]
[365258040,1749567045468,-500.0,0.0002306,2]
[365258042,1749567045477,-502.25479299,0.0002306,2]
[365258044,1749567045488,-766.63,0.00023093,2]
[365258046,1749567045499,-87826.9700956,0.000231,7]
[365258057,1749567045597,-20941.6299044,0.000231,7]
[365258059,1749567045607,-690.89245283,0.00023107,8]
[365258061,1749567045617,-500.0,0.00023108,2]
[365258063,1749567045626,-168.0,0.00023163,2]
[365258065,1749567045635,-766.63,0.00023193,2]
[365258067,1749567045645,-603.34954405,0.000232,2]
[365258069,1749567045654,-745.33151739,0.00023219,2]
[365258071,1749567045667,-217.66848261,0.00023219,2]
[365258073,1749567045676,-2160.0,0.00023219,2]
[365258075,1749567045686,-507.5711493,0.00023219,2]
[365258077,1749567045698,-145.4288507,0.00023219,2]
[365258079,1749567045707,-405.0,0.00023219,2]
[365258081,1749567045717,-247.364,0.00023219,2]
[365258083,1749567045726,-235.654,0.00023219,2]
[365258085,1749567045736,-250.0,0.00023219,2]
[365258087,1749567045745,-116.42572127,0.00023219,2]
[365258090,1749567045759,-35.81327873,0.00023219,2]
[365258092,1749567045768,-690.89245283,0.00023245,8]
[365258094,1749567045778,-294.65732962,0.00023287,4]
[365258096,1749567045794,-195.04267038,0.00023287,4]
[365258098,1749567045804,-638.78,0.00023287,4]
[365258100,1749567045813,-460.0,0.00023287,4]
[365258102,1749567045823,-537.95,0.00023287,4]
[365258104,1749567045832,-525.46,0.00023287,4]
[365258106,1749567045843,-1473.04,0.00023287,4]
[365258109,1749567045853,-460.0,0.00023287,4]
[365258110,1749567045863,-460.0,0.00023287,4]
[365258113,1749567045872,-460.0,0.00023287,4]
[365258115,1749567045882,-460.0,0.00023287,4]
[365258117,1749567045892,-63.80109195,0.00023287,4]
[365258119,1749567045904,-396.19890805,0.00023287,4]
[365258121,1749567045914,-956.23,0.00023287,4]
[365258123,1749567045924,-123.17109115,0.00023287,4]
[365258133,1749567046015,-691.13890885,0.00023287,4]
[365258135,1749567046026,-460.0,0.00023287,2]
[365258137,1749567046035,-615.67,0.00023287,4]
[365258140,1749567046046,-460.0,0.00023287,4]
[365258142,1749567046055,-482.08,0.00023287,4]
[365258144,1749567046065,-1623.99,0.00023287,4]
[365258146,1749567046076,-447.05642403,0.00023287,4]
[365258161,1749567046209,-712.1711128,0.00023287,4]
[365258163,1749567046221,-243.08246317,0.00023287,4]
[365258165,1749567046232,-156.91753683,0.00023287,4]
[365258177,1749567046342,-248.6,0.0002099,10]
[365258179,1749567046352,-460.0,0.00021095,4]
[365258181,1749567046361,-460.0,0.00021369,4]
[365258183,1749567046371,-460.0,0.00021643,4]
[365258185,1749567046380,-695.50246317,0.00023287,4]
[365258187,1749567046389,-1877.76,0.00023287,4]
[365258189,1749567046399,-460.0,0.00023287,4]
[365258191,1749567046408,-131.37414275,0.00023287,4]
[365258193,1749567046420,-357.03585725,0.00023287,4]
[365258195,1749567046429,-1307.65,0.00023287,4]
[365258197,1749567046439,-1421.29,0.00023287,4]
[365258199,1749567046448,-771.06,0.00023287,4]
[365258201,1749567046458,-698.142686,0.00023287,4]
[365258203,1749567046469,-376.657314,0.00023287,4]
[365258205,1749567046478,-354.03773682,0.00023287,4]
[365258208,1749567046490,-105.96226318,0.00023287,4]
[365258209,1749567046500,-976.63,0.00023287,4]
[365258211,1749567046509,-537.78,0.00023287,4]
[365258214,1749567046519,-627.69,0.00023287,4]
[365258215,1749567046529,-1930.34,0.00023287,4]
[365258217,1749567046538,-585.01,0.00023287,4]
[365258219,1749567046547,-766.63,0.00023293,5]
[365258221,1749567046556,-587.0,0.0002331,2]
[365258223,1749567046566,-1000.0,0.00023338,2]
[365258225,1749567046575,-500.0,0.00023338,2]
[365258227,1749567046584,-733.6763043,0.00023338,2]
[365258229,1749567046593,-1200.0,0.00023338,2]
[365258231,1749567046602,-500.0,0.00023371,2]
[365258233,1749567046611,-160.07517388,0.00023371,2]
[365258235,1749567046621,-258.52074538,0.00023371,2]
[365258237,1749567046631,-500.0,0.00023371,2]
[365258239,1749567046640,-690.89245283,0.00023383,9]
[365258241,1749567046649,-766.63,0.00023393,7]
[365258243,1749567046659,-151.9708984,0.00023427,2]
[365258244,1749567046667,-4305.26,0.00023451,2]
[365258246,1749567046677,-766.63,0.00023493,5]
[365258248,1749567046686,-500.0,0.000235,2]
[365258250,1749567046695,-1514.05,0.000235,7]
[365258252,1749567046704,-690.89245283,0.00023521,9]
[365258254,1749567046713,-5000.0,0.00023526,2]
[365258256,1749567046723,-500.0,0.00023544,2]
[365258258,1749567046732,-489.7,0.00023561,4]
[365258260,1749567046741,-638.78,0.00023561,4]
[365258262,1749567046750,-460.0,0.00023561,4]
[365258264,1749567046760,-537.95,0.00023561,4]
[365258265,1749567046769,-525.46,0.00023561,4]
[365258267,1749567046779,-1473.04,0.00023561,4]
[365258269,1749567046788,-460.0,0.00023561,4]
[365258271,1749567046798,-460.0,0.00023561,4]
[365258273,1749567046807,-460.0,0.00023561,4]
[365258275,1749567046815,-167.23167681,0.00023561,4]
[365258277,1749567046824,-460.0,0.00023561,4]
[365258279,1749567046833,-956.23,0.00023561,4]
[365258281,1749567046843,-814.31,0.00023561,4]
[365258283,1749567046852,-460.0,0.00023561,2]
[365258285,1749567046861,-615.67,0.00023561,4]
[365258287,1749567046870,-460.0,0.00023561,4]
[365258289,1749567046879,-482.08,0.00023561,4]
[365258291,1749567046888,-1623.99,0.00023561,4]
[365258293,1749567046898,-1402.31,0.00023561,4]
[365258294,1749567046907,-852.42,0.00023561,4]
[365258296,1749567046917,-1877.76,0.00023561,4]
[365258298,1749567046926,-460.0,0.00023561,4]
[365258300,1749567046936,-488.41,0.00023561,4]
[365258302,1749567046946,-1307.65,0.00023561,4]
[365258303,1749567046955,-1421.29,0.00023561,4]
[365258304,1749567046964,-771.06,0.00023561,4]
[365258305,1749567046973,-1074.8,0.00023561,4]
[365258306,1749567046982,-460.0,0.00023561,4]
[365258307,1749567046992,-976.63,0.00023561,4]
[365258308,1749567047003,-537.78,0.00023561,4]
[365258309,1749567047012,-627.69,0.00023561,4]
[365258310,1749567047021,-1930.34,0.00023561,4]
[365258311,1749567047031,-585.01,0.00023561,4]
[365258312,1749567047040,-766.63,0.00023593,7]
[365258313,1749567047050,-1500.0,0.00023596,2]
[365258314,1749567047060,-1593.21,0.000236,2]
[365258315,1749567047069,-2301.93,0.000236,7]
[365258316,1749567047078,-1000.0,0.00023656,2]
[365258317,1749567047087,-690.89245283,0.00023659,9]
[365258318,1749567047096,-1664.73982,0.00023678,3]
[365258319,1749567047105,-766.63,0.00023693,4]
[365258320,1749567047114,-150.26414524,0.0002378,2]
[365258321,1749567047124,-766.63,0.00023793,5]
[365258322,1749567047133,-690.89245283,0.00023797,9]
[365258323,1749567047142,-168.0,0.00023807,2]
[365258324,1749567047152,-489.7,0.00023835,4]
[365258325,1749567047161,-638.78,0.00023835,4]
[365258327,1749567047171,-460.0,0.00023835,4]
[365258329,1749567047180,-537.95,0.00023835,4]
[365258331,1749567047189,-525.46,0.00023835,4]
[365258333,1749567047199,-1473.04,0.00023835,4]
[365258335,1749567047209,-460.0,0.00023835,4]
[365258337,1749567047219,-460.0,0.00023835,4]
[365258339,1749567047228,-460.0,0.00023835,4]
[365258341,1749567047237,-460.0,0.00023835,4]
[365258343,1749567047247,-956.23,0.00023835,4]
[365258345,1749567047261,-814.31,0.00023835,4]
[365258347,1749567047271,-460.0,0.00023835,2]
[365258349,1749567047280,-615.67,0.00023835,4]
[365258351,1749567047290,-460.0,0.00023835,4]
[365258353,1749567047301,-482.08,0.00023835,4]
[365258355,1749567047310,-1623.99,0.00023835,4]
[365258357,1749567047319,-1402.31,0.00023835,4]
[365258359,1749567047329,-852.42,0.00023835,4]
[365258361,1749567047338,-1877.76,0.00023835,4]
[365258363,1749567047348,-460.0,0.00023835,4]
[365258365,1749567047358,-488.41,0.00023835,4]
[365258367,1749567047367,-1307.65,0.00023835,4]
[365258369,1749567047376,-1421.29,0.00023835,4]
[365258371,1749567047385,-771.06,0.00023835,4]
[365258373,1749567047395,-1074.8,0.00023835,4]
[365258375,1749567047404,-460.0,0.00023835,4]
[365258377,1749567047413,-976.63,0.00023835,4]
[365258379,1749567047422,-537.78,0.00023835,4]
[365258381,1749567047432,-627.69,0.00023835,4]
[365258383,1749567047441,-1930.34,0.00023835,4]
[365258385,1749567047450,-585.01,0.00023835,4]
[365258387,1749567047460,-364.9974737,0.00023863,2]
[365258389,1749567047469,-364.9974737,0.00023863,2]
[365258391,1749567047478,-364.9974737,0.00023863,2]
[365258393,1749567047487,-364.9974737,0.00023863,2]
[365258395,1749567047497,-364.9974737,0.00023863,2]
[365258397,1749567047507,-364.9974737,0.00023863,2]
[365258399,1749567047515,-364.9974737,0.00023863,2]
[365258401,1749567047525,-238.5260496,0.00023863,2]
[365258403,1749567047534,-1500.0,0.00023886,2]
[365258405,1749567047543,-1800.0,0.00023886,2]
[365258407,1749567047552,-364.9974737,0.0002389,2]
[365258409,1749567047561,-364.9974737,0.0002389,2]
[365258411,1749567047570,-364.9974737,0.0002389,2]
[365258413,1749567047579,-766.63,0.00023893,5]
[365258415,1749567047588,-842.5625,0.000239,7]
[365258417,1749567047598,-213.1263252,0.000239,7]
[365258419,1749567047607,-2025.53529167,0.000239,2]
[365258421,1749567047616,-1011.06196989,0.00023919,2]
[365258423,1749567047625,-690.89245283,0.00023934,10]
[365258425,1749567047635,-766.63,0.00023993,7]
[365258427,1749567047644,-500.0,0.00024,2]
[365258429,1749567047653,-151.0,0.00024,7]
[365258431,1749567047662,-160.0,0.00024,7]
[365258433,1749567047672,-165.495011,0.00024,7]
[365258435,1749567047681,-165.495011,0.00024,7]
[365258437,1749567047690,-151.0,0.00024,7]
[365258439,1749567047699,-5000.13,0.00024,30]
[365258441,1749567047709,-2200.0,0.00024066,2]
[365258443,1749567047718,-799.596,0.00024066,2]
[365258445,1749567047727,-690.89245283,0.00024072,10]
[365258447,1749567047736,-5000.0,0.00024074,2]
[365258449,1749567047745,-766.63,0.00024093,4]
[365258450,1749567047756,-489.7,0.00024109,4]
[365258452,1749567047765,-638.78,0.00024109,4]
[365258454,1749567047774,-460.0,0.00024109,4]
[365258456,1749567047783,-537.95,0.00024109,4]
[365258458,1749567047792,-525.46,0.00024109,4]
[365258460,1749567047802,-1473.04,0.00024109,4]
[365258462,1749567047812,-460.0,0.00024109,4]
[365258464,1749567047822,-460.0,0.00024109,4]
[365258465,1749567047831,-460.0,0.00024109,4]
[365258466,1749567047841,-460.0,0.00024109,4]
[365258467,1749567047850,-956.23,0.00024109,4]
[365258468,1749567047859,-814.31,0.00024109,4]
[365258469,1749567047869,-460.0,0.00024109,2]
[365258470,1749567047878,-615.67,0.00024109,4]
[365258471,1749567047888,-460.0,0.00024109,4]
[365258472,1749567047897,-482.08,0.00024109,4]
[365258473,1749567047907,-1402.31,0.00024109,4]
[365258474,1749567047916,-852.42,0.00024109,4]
[365258475,1749567047925,-1877.76,0.00024109,4]
[365258476,1749567047934,-460.0,0.00024109,4]
[365258477,1749567047944,-488.41,0.00024109,4]
[365258478,1749567047953,-1307.65,0.00024109,4]
[365258479,1749567047963,-1421.29,0.00024109,4]
[365258480,1749567047972,-771.06,0.00024109,4]
[365258481,1749567047982,-1074.8,0.00024109,4]
[365258482,1749567047992,-460.0,0.00024109,4]
[365258483,1749567048003,-976.63,0.00024109,4]
[365258484,1749567048013,-537.78,0.00024109,4]
[365258485,1749567048023,-627.69,0.00024109,4]
[365258486,1749567048033,-1930.34,0.00024109,4]
[365258487,1749567048042,-585.01,0.00024109,4]
[365258488,1749567048052,-2000.0,0.00024144,2]
[365258489,1749567048061,-766.63,0.00024193,4]
[365258490,1749567048071,-2000.0,0.000242,2]
[365258491,1749567048081,-2000.0,0.000242,2]
[365258492,1749567048090,-154.49391211,0.000242,3]
[365258494,1749567048099,-316.0,0.000242,3]
[365258496,1749567048109,-316.0,0.000242,3]
[365258498,1749567048118,-316.0,0.000242,3]
[365258499,1749567048128,-321.92293093,0.000242,3]
[365258500,1749567048137,-151.0,0.000242,5]
[365258501,1749567048147,-24532.72108751,0.000242,7]
[365258502,1749567048271,-313.326558,0.00021095,4]
[365258503,1749567048282,-146.673442,0.00021095,4]
[365258504,1749567048293,-460.0,0.00021369,4]
[365258505,1749567048302,-460.0,0.00021643,4]
[365258506,1749567048311,-460.0,0.00021917,4]
[365258507,1749567048321,-460.0,0.00021917,4]
[365258508,1749567048331,-460.0,0.00022191,4]
[365258509,1749567048341,-11.73788476,0.00022465,4]
[365258510,1749567048353,-448.26211524,0.00022465,4]
[365258511,1749567048363,-460.0,0.00022739,4]
[365258512,1749567048373,-354.93065047,0.00023013,4]
[365258513,1749567048389,-105.06934953,0.00023013,4]
[365258514,1749567048399,-214.46,0.00023287,4]
[365258515,1749567048409,-364.9974737,0.0002389,2]
[365258516,1749567048418,-3917.61606307,0.000242,7]
[365258907,1749567410832,2547.65838529,0.00024826,120]
[365258934,1749567916528,457.0,0.000244,120]
[365258936,1749567990376,1500.0,0.000244,120]
[365258940,1749568045640,309.146575,0.00013699,2]
[365258951,1749568160519,151.04116273,0.00018,2]
[365258968,1749568232029,-290.68856812,0.00019271,2]
[365258969,1749568232039,-677.59257092,0.00020021,2]
[365258987,1749568232195,-353.78988799,0.00020021,2]
[365258988,1749568232206,-300.0,0.00020032,2]
[365258989,1749568232216,-300.0,0.00020032,2]
[365258990,1749568232225,-1200.0,0.00020032,2]
[365258991,1749568232235,-24900.0,0.00020033,2]
[365258992,1749568232245,-291.681857,0.00020095,2]
[365258993,1749568232254,-309.146575,0.00020187,2]
[365258994,1749568232264,-164.199,0.00020372,2]
[365258996,1749568232274,-939.33,0.00020574,2]
[365258998,1749568232283,-161.14771121,0.0002071,2]
[365259000,1749568232293,-164.49502883,0.00020995,2]
[365259002,1749568232303,-500.0,0.00021073,2]
[365259004,1749568232312,-501.16490734,0.00021073,2]
[365259007,1749568232322,-500.0,0.00021073,2]
[365259009,1749568232331,-500.0,0.00021073,2]
[365259012,1749568232341,-500.0,0.00021073,2]
[365259016,1749568232350,-500.0,0.00021073,2]
[365259020,1749568232360,-500.0,0.00021073,2]
[365259023,1749568232369,-17219.50719034,0.00021073,2]
[365259026,1749568232379,-504.89740787,0.00021073,2]
[365259027,1749568232389,-500.0,0.00021073,2]
[365259028,1749568232398,-500.0,0.00021073,2]
[365259029,1749568232408,-262.38,0.00021085,10]
[365259030,1749568232417,-218.65,0.00021085,10]
[365259031,1749568232426,-182.21,0.00021085,10]
[365259032,1749568232436,-151.84,0.00021085,10]
[365259033,1749568232445,-500.0,0.00021094,2]
[365259034,1749568232456,-500.0,0.00021094,2]
[365259035,1749568232465,-491.36128317,0.00021094,2]
[365259036,1749568232474,-427.5,0.00021094,2]
[365259037,1749568232483,-500.0,0.00021094,2]
[365259038,1749568232492,-157.57646257,0.00021094,2]
[365259039,1749568232502,-500.0,0.00021094,2]
[365259040,1749568232511,-500.0,0.00021094,2]
[365259041,1749568232520,-500.0,0.00021094,2]
[365259042,1749568232529,-500.0,0.00021094,2]
[365259043,1749568232539,-500.0,0.00021094,2]
[365259044,1749568232548,-500.0,0.00021094,2]
[365259045,1749568232557,-500.0,0.00021094,2]
[365259046,1749568232566,-500.0,0.00021094,2]
[365259047,1749568232575,-500.0,0.00021094,2]
[365259048,1749568232584,-500.0,0.00021094,2]
[365259049,1749568232594,-500.0,0.00021094,2]
[365259050,1749568232603,-500.0,0.00021094,2]
[365259051,1749568232612,-500.0,0.00021094,2]
[365259052,1749568232621,-500.0,0.00021094,2]
[365259053,1749568232630,-405.93187506,0.00021094,2]
[365259054,1749568232639,-155.0,0.00021094,2]
[365259055,1749568232648,-500.0,0.00021094,2]
[365259056,1749568232657,-440.0,0.00021095,4]
[365259057,1749568232669,-550.0,0.00021095,4]
[365259058,1749568232679,-440.0,0.00021095,4]
[365259059,1749568232688,-440.0,0.00021095,4]
[365259060,1749568232698,-440.0,0.00021095,4]
[365259061,1749568232710,-433.25227957,0.00021095,4]
[365259062,1749568232720,-440.0,0.00021095,4]
[365259063,1749568232729,-440.0,0.00021095,4]
[365259064,1749568232739,-440.0,0.00021095,4]
[365259065,1749568232749,-440.0,0.00021095,4]
[365259066,1749568232758,-440.0,0.00021095,4]
[365259067,1749568232768,-440.0,0.00021095,4]
[365259068,1749568232777,-440.0,0.00021095,4]
[365259069,1749568232787,-440.0,0.00021095,4]
[365259070,1749568232796,-440.0,0.00021095,4]
[365259071,1749568232805,-440.0,0.00021095,4]
[365259072,1749568232814,-460.0,0.00021095,4]
[365259073,1749568232824,-460.0,0.00021095,4]
[365259074,1749568232832,-460.0,0.00021095,4]
[365259075,1749568232842,-460.0,0.00021095,4]
[365259076,1749568232851,-460.0,0.00021095,4]
[365259077,1749568232860,-460.0,0.00021095,4]
[365259078,1749568232869,-460.0,0.00021095,4]
[365259079,1749568232879,-460.0,0.00021095,4]
[365259080,1749568232888,-460.0,0.00021095,4]
[365259081,1749568232897,-440.0,0.00021095,4]
[365259082,1749568232908,-418.76734116,0.00021095,4]